bitfinex/quotes_ETHUSD_20230110
["timestamp","ask_amount","ask_price","bid_price","bid_amount"]
[1673344609152,28.86532945,1330.5,1330.1,38.36686237]
[1673344609510,1.69129644,1330.4,1330.1,38.36686237]
[1673344609716,28.87532945,1330.5,1330.1,38.36686237]
[1673344609920,28.86532945,1330.5,1330.1,38.36686237]
[1673344610364,21.34933945,1330.5,1330.1,38.36686237]
[1673344610766,28.86533945,1330.5,1330.1,38.36686237]
[1673344611500,36.94523945,1330.5,1330.1,30.84863237]
[1673344611744,36.38133945,1330.5,1330.1,28.0503914]
[1673344612461,43.89733945,1330.5,1330.1,13.0139314]
[1673344612657,44.46123945,1330.5,1330.1,13.0139314]
[1673344613104,1.69129644,1330.4,1330.1,13.0139314]
[1673344613305,9.20812644,1330.4,1330.1,9.12579863]
[1673344613510,9.26274613,1330.4,1330.1,13.0139325]
[1673344613765,9.26274613,1330.4,1330.1,16.64394863]
[1673344614688,9.26274613,1330.4,1330.1,14.14394863]
[1673344614863,9.26274613,1330.4,1330.1,12.44294863]
[1673344615074,11.51816945,1330.4,1330.1,12.44294863]
[1673344615278,11.51816945,1330.4,1330.1,4.92479863]
[1673344615553,11.51816945,1330.4,1330.1,4.86045388]
[1673344617231,9.26274613,1330.4,1330.1,4.86045388]
[1673344617854,0.42037921,1330.3,1330.1,4.86045388]
[1673344620640,0.42037921,1330.3,1330.1,12.37854388]
[1673344620896,0.42037921,1330.3,1330.1,12.44288863]
[1673344624543,0.42037921,1330.3,1330.1,19.96111863]
[1673344625298,0.42037921,1330.3,1330.1,12.44288863]
[1673344625939,0.42037921,1330.3,1330.1,4.92479863]
[1673344626153,0.42037921,1330.3,1330.1,4.86045388]
[1673344629405,15.45500921,1330.3,1330.1,1.11597447]
[1673344629573,17.20092534,1330.3,1330.1,1.11597447]
[1673344629782,24.71840534,1330.3,1330.1,1.11597447]
[1673344631388,26.97382866,1330.3,1330.1,1.11597447]
[1673344631924,24.71840534,1330.3,1330.1,1.11597447]
[1673344632140,28.67668758,1330.3,1330.1,1.11597447]
[1673344632446,21.15920758,1330.3,1330.1,1.11597447]
[1673344632665,28.67668758,1330.3,1330.1,1.11597447]
[1673344632833,30.9321109,1330.3,1330.1,1.11597447]
[1673344633671,23.4146309,1330.3,1330.1,1.11597447]
[1673344634322,38.61381821,1330.3,1330.1,1.11597447]
[1673344634533,1.69129644,1330.2,1330.1,1.11597447]
[1673344634748,16.72661644,1330.2,1330.1,1.11597447]
[1673344634971,16.78123613,1330.2,1330.1,1.11597447]
[1673344635513,15.08993969,1330.2,1330.1,1.11597447]
[1673344635724,9.26357613,1330.2,1330.1,1.11597447]
[1673344638725,0.05461969,1330.2,1330.1,1.11597447]
[1673344638936,24.95167882,1330.3,1330.1,1.11597447]
[1673344639161,36.22528607,1330.3,1330.1,1.11597447]
[1673344640125,1.69129644,1330.2,1330.1,1.11597447]
[1673344640340,9.20895644,1330.2,1330.1,1.11597447]
[1673344640614,9.26357613,1330.2,1330.1,1.11597447]
[1673344642353,0.05461969,1330.2,1330.1,1.11597447]
[1673344642561,6.11941818,1330.3,1330.1,1.11597447]
[1673344643824,13.63653818,1330.3,1330.1,1.11597447]
[1673344645496,11.93553818,1330.3,1330.1,1.11597447]
[1673344646125,4.41841818,1330.3,1330.1,1.11597447]
[1673344646337,4.36379849,1330.3,1330.1,1.11597447]
[1673344646564,11.88093849,1330.3,1330.1,1.11597447]
[1673344646889,11.93555818,1330.3,1330.1,1.11597447]
[1673344649034,9.68013486,1330.3,1330.1,1.11597447]
[1673344649376,2.16299486,1330.3,1330.1,3.60685785]
[1673344649598,9.62551517,1330.3,1330.1,3.60685785]
[1673344649768,9.68013486,1330.3,1330.1,3.60685785]
[1673344649978,2.16299486,1330.3,1330.1,3.60685785]
[1673344650191,2.10837517,1330.3,1330.1,18.64331785]
[1673344650446,2.10837517,1330.3,1330.1,26.2258926]
[1673344650660,2.10837517,1330.3,1330.1,29.02443478]
[1673344652077,2.10837517,1330.3,1330.1,6.46974478]
[1673344652288,6.83854672,1330.4,1330.3,0.70222557]
[1673344652289,4.01133945,1330.4,1330.3,0.70222557]
[1673344652606,3.94671976,1330.4,1330.3,0.70222557]
[1673344654945,1.69129644,1330.4,1330.3,0.70222557]
[1673344655161,3.06891613,1330.5,1330.3,29.62681797]
[1673344655375,3.00429644,1330.5,1330.3,31.19365062]
[1673344655548,3.56819644,1330.5,1330.3,33.99158724]
[1673344655914,3.56819644,1330.5,1330.3,27.32035822]
[1673344656230,3.00429644,1330.5,1330.3,27.32035822]
[1673344657352,1.313,1330.5,1330.3,27.32035822]
[1673344660378,1.313,1330.5,1330.3,19.80325822]
[1673344660955,1.313,1330.5,1330.3,12.28615822]
[1673344666366,1.313,1330.5,1330.3,11.58393265]
[1673344677719,3.00429644,1330.5,1330.3,11.58393265]
[1673344677967,1.313,1330.5,1330.3,11.58393265]
[1673344679944,1.313,1330.5,1330.3,19.10103265]
[1673344681235,1.313,1330.5,1330.3,11.58393265]
[1673344681963,1.313,1330.5,1330.3,19.10103265]
[1673344683128,1.313,1330.5,1330.3,11.58393265]
[1673344683759,10.52039644,1330.5,1330.3,0.06434475]
[1673344683913,10.57501613,1330.5,1330.2,8.56564475]
[1673344685254,12.83043945,1330.5,1330.2,8.56564475]
[1673344686806,14.53143945,1330.5,1330.2,8.56564475]
[1673344688932,1.69129644,1330.4,1330.2,8.56564475]
[1673344689107,1.69129644,1330.4,1330.2,12.40087181]
[1673344690298,9.20786644,1330.4,1330.2,12.39709014]
[1673344690489,16.77905613,1330.4,1330.2,8.56186308]
[1673344691340,9.26248613,1330.4,1330.2,8.56186308]
[1673344693932,1.74591613,1330.4,1330.2,8.56186308]
[1673344694129,1.69129644,1330.4,1330.2,8.56186308]
[1673344696140,30.70068672,1330.5,1330.3,1.86532434]
[1673344696141,29.57447945,1330.5,1330.3,1.86532434]
[1673344696451,25.45725777,1330.5,1330.3,4.36532434]
[1673344696699,25.45725777,1330.5,1330.3,2.5]
[1673344696912,25.45725777,1330.5,1330.2,14.97527957]
[1673344697128,25.45725777,1330.5,1330.3,1.86536417]
[1673344697492,1.69056337,1330.4,1330.2,14.97527957]
[1673344697739,20.36666301,1330.5,1330.2,16.26202022]
[1673344697943,20.35666301,1330.5,1330.2,14.97527957]
[1673344698172,1.69055668,1330.4,1330.2,14.97527957]
[1673344698350,20.36666301,1330.5,1330.2,14.97527957]
[1673344698540,1.69056451,1330.4,1330.2,13.85999332]
[1673344699080,1.69056451,1330.4,1330.2,14.97527957]
[1673344699313,1.69056451,1330.4,1330.2,19.81193946]
[1673344700119,1.69056451,1330.4,1330.2,16.19665321]
[1673344700473,1.69056451,1330.4,1330.2,11.35999332]
[1673344700682,1.69056451,1330.4,1330.2,8.56186308]
[1673344704328,1.69056451,1330.4,1330.2,11.35999332]
[1673344704571,1.69056451,1330.4,1330.2,8.56186308]
[1673344705999,1.69056451,1330.4,1330.2,11.35999332]
[1673344706214,1.69070753,1330.4,1330.2,11.35999332]
[1673344707001,15.66764672,1330.5,1330.2,19.99286957]
[1673344707002,12.85014301,1330.5,1330.2,19.99286957]
[1673344707212,12.84014301,1330.5,1330.3,4.36535431]
[1673344707383,1.69069284,1330.4,1330.3,2.5]
[1673344707600,1.69069321,1330.4,1330.3,4.36538215]
[1673344707948,1.69069353,1330.4,1330.3,4.36538215]
[1673344708141,12.85014301,1330.5,1330.3,4.36538215]
[1673344708355,12.84014301,1330.5,1330.2,19.99286957]
[1673344708521,1.69069366,1330.4,1330.2,17.19473933]
[1673344708733,12.85014301,1330.5,1330.3,1.86538405]
[1673344708947,16.08012168,1330.5,1330.3,1.86538405]
[1673344709169,1.69073677,1330.4,1330.3,1.86538405]
[1673344709419,12.85014301,1330.5,1330.2,22.49286957]
[1673344709590,12.84014301,1330.5,1330.2,22.49286957]
[1673344709816,1.69074901,1330.4,1330.2,22.49286957]
[1673344710011,1.69074976,1330.4,1330.2,27.32947046]
[1673344711737,1.6907691,1330.4,1330.3,4.36538489]
[1673344711913,12.85014301,1330.5,1330.3,4.36538489]
[1673344712106,12.84014301,1330.5,1330.2,19.99286957]
[1673344712323,1.6907806,1330.4,1330.2,19.99286957]
[1673344712645,1.69079521,1330.4,1330.2,19.99286957]
[1673344712855,12.85014301,1330.5,1330.2,19.99286957]
[1673344713070,1.69079477,1330.4,1330.2,12.47527957]
[1673344713398,1.69083025,1330.4,1330.2,12.47527957]
[1673344717425,1.69083025,1330.4,1330.2,19.99284957]
[1673344717812,1.69083025,1330.4,1330.2,18.87756332]
[1673344719060,1.69083025,1330.4,1330.2,19.99284957]
[1673344719636,8.57402168,1330.5,1330.3,1.86540897]
[1673344719870,1.69092463,1330.4,1330.2,24.71237933]
[1673344720003,1.69092463,1330.4,1330.2,27.51050957]
[1673344720525,5.33404301,1330.5,1330.3,9.38244652]
[1673344720740,1.69091315,1330.4,1330.3,7.58141475]
[1673344721001,1.69091388,1330.4,1330.3,9.44679069]
[1673344721170,7.07084268,1330.5,1330.3,9.44679069]
[1673344721385,1.69092336,1330.4,1330.3,7.58141475]
[1673344721724,1.6909241,1330.4,1330.3,9.44679006]
[1673344721895,5.33404301,1330.5,1330.3,9.44679006]
[1673344722101,1.69100901,1330.4,1330.3,7.58141475]
[1673344722395,1.69100925,1330.4,1330.3,16.96388637]
[1673344722574,5.33404301,1330.5,1330.3,16.96388637]
[1673344722739,5.32404301,1330.5,1330.3,15.09851475]
[1673344722950,7.01503657,1330.5,1330.3,15.09851475]
[1673344723191,1.69112146,1330.4,1330.3,15.09851475]
[1673344723383,5.33404301,1330.5,1330.3,16.96386978]
[1673344723595,1.69111902,1330.4,1330.3,15.09851475]
[1673344723807,7.02515897,1330.5,1330.3,16.9638671]
[1673344724023,6.47840928,1330.5,1330.3,15.09851475]
[1673344724237,1.69113256,1330.4,1330.3,15.09851475]
[1673344724432,1.69113337,1330.4,1330.3,16.9638821]
[1673344724652,1.6911337,1330.4,1330.3,16.9638821]
[1673344724997,1.69111504,1330.4,1330.3,16.9638821]
[1673344725237,7.02509158,1330.5,1330.3,16.9638821]
[1673344725539,6.47840254,1330.5,1330.3,15.09851475]
[1673344725705,1.69105915,1330.4,1330.3,15.09851475]
[1673344725917,1.69105944,1330.4,1330.3,16.96387815]
[1673344726120,5.33404301,1330.5,1330.3,9.44677815]
[1673344726326,1.69109373,1330.4,1330.3,7.58141475]
[1673344726544,1.69109373,1330.4,1330.3,9.44681784]
[1673344726762,1.69108788,1330.4,1330.3,9.44681784]
[1673344727044,1.69108852,1330.4,1330.3,9.44681784]
[1673344727276,1.69109072,1330.4,1330.3,9.44681784]
[1673344727503,8.15154672,1330.5,1330.3,9.44681784]
[1673344727714,1.69110216,1330.4,1330.3,7.58141475]
[1673344728306,1.69110216,1330.4,1330.3,9.44681509]
[1673344728651,1.69108743,1330.4,1330.3,9.44681509]
[1673344728840,7.07084268,1330.5,1330.3,9.44681509]
[1673344729080,7.06084268,1330.5,1330.3,7.58141475]
[1673344729250,1.69109677,1330.4,1330.3,7.58141475]
[1673344729458,1.69110121,1330.4,1330.3,9.44681076]
[1673344729719,1.69110121,1330.4,1330.3,1.92974076]
[1673344729895,1.69110121,1330.4,1330.3,1.86539601]
[1673344730107,1.69110121,1330.4,1330.3,9.38249601]
[1673344730310,1.69110121,1330.4,1330.3,0.06434475]
[1673344730524,1.69110121,1330.4,1330.2,27.51000957]
[1673344731234,1.69110121,1330.4,1330.2,27.29322444]
[1673344732790,3.94652453,1330.4,1330.2,18.66056819]
[1673344733002,3.94652453,1330.4,1330.2,15.86243795]
[1673344733580,3.94652453,1330.4,1330.2,18.66056819]
[1673344733840,5.4770316,1330.4,1330.2,18.66056819]
[1673344734026,4.00114422,1330.4,1330.2,18.66056819]
[1673344734239,3.94652453,1330.4,1330.2,18.66056819]
[1673344741090,1.69110121,1330.3,1330.2,8.34507795]
[1673344741255,1.69108767,1330.3,1330.2,10.2106231]
[1673344741473,4.00604301,1330.4,1330.2,10.2106231]
[1673344741827,1.69109326,1330.3,1330.2,8.34507795]
[1673344742153,6.49660465,1330.4,1330.2,10.21062074]
[1673344742307,6.48660465,1330.4,1330.2,8.34507795]
[1673344742648,6.48660465,1330.4,1330.2,15.86267795]
[1673344743068,1.69108801,1330.3,1330.2,15.86267795]
[1673344743261,6.49660465,1330.4,1330.2,17.72821502]
[1673344743477,6.48660465,1330.4,1330.2,7.58194475]
[1673344743684,1.69105946,1330.3,1330.2,7.58194475]
[1673344743910,1.69086036,1330.3,1330.2,9.44747811]
[1673344744087,6.49660465,1330.4,1330.2,9.44747811]
[1673344744303,1.69086682,1330.3,1330.2,7.58194475]
[1673344744556,1.69086738,1330.3,1330.2,7.58194475]
[1673344744721,6.49660465,1330.4,1330.2,0.06434475]
[1673344745084,6.48660465,1330.4,1330.1,19.01363255]
[1673344745303,6.48660465,1330.4,1330.1,16.215321]
[1673344745687,8.17727717,1330.4,1330.2,1.8655281]
[1673344746767,1.69067252,1330.3,1330.1,26.53164255]
[1673344747090,1.69070236,1330.3,1330.1,22.61804475]
[1673344748651,1.69052166,1330.3,1330.1,22.61804475]
[1673344748880,1.69051758,1330.3,1330.1,22.61804475]
[1673344749243,4.00604301,1330.4,1330.1,22.61804475]
[1673344749457,3.39141005,1330.3,1330.1,22.61804475]
[1673344749975,3.39141005,1330.3,1330.1,7.58211475]
[1673344752925,3.39141005,1330.3,1330.1,0.06434475]
[1673344753139,3.39141005,1330.3,1330.1,3.0]
[1673344754197,3.39141005,1330.3,1330.1,10.51819]
[1673344754409,3.39141005,1330.3,1330.1,10.58253475]
[1673344756489,1.701,1330.3,1330.1,10.58253475]
[1673344756734,0.58167018,1330.3,1330.1,19.216051]
[1673344756947,0.58167018,1330.3,1330.1,23.15231819]
[1673344757227,0.58167018,1330.3,1330.1,33.46885974]
[1673344757471,0.58167018,1330.3,1330.2,1.86548803]
[1673344757747,0.58167018,1330.3,1330.2,16.90080803]
[1673344758001,0.58167018,1330.3,1330.2,16.96515278]
[1673344759068,3.37641005,1330.4,1330.2,16.96515278]
[1673344759378,3.37641005,1330.4,1330.2,15.09966475]
[1673344760875,3.37641005,1330.4,1330.2,22.61732475]
[1673344763332,5.63183337,1330.4,1330.2,22.61732475]
[1673344763538,3.43102974,1330.4,1330.2,22.61732475]
[1673344763884,3.37641005,1330.4,1330.2,22.61732475]
[1673344765118,5.63183337,1330.4,1330.2,22.61732475]
[1673344765325,3.43102974,1330.4,1330.2,22.61732475]
[1673344765586,3.37641005,1330.4,1330.2,22.61732475]
[1673344769113,5.63183337,1330.4,1330.2,22.61732475]
[1673344769316,5.68645306,1330.4,1330.2,22.61732475]
[1673344769527,3.43102974,1330.4,1330.2,22.61732475]
[1673344769738,5.63183337,1330.4,1330.2,22.61732475]
[1673344769944,5.68645306,1330.4,1330.2,15.09966475]
[1673344770519,3.43102974,1330.4,1330.2,15.09966475]
[1673344770739,3.37641005,1330.4,1330.2,15.09966475]
[1673344773532,3.37641005,1330.4,1330.2,16.214951]
[1673344773741,3.37641005,1330.4,1330.2,15.09966475]
[1673344775322,3.37641005,1330.4,1330.2,16.214951]
[1673344776264,3.37641005,1330.4,1330.2,15.09966475]
[1673344776477,3.37641005,1330.4,1330.3,1.86537054]
[1673344776839,1.686,1330.4,1330.3,9.38247054]
[1673344777014,24.69925273,1330.5,1330.3,9.44681529]
[1673344777015,22.40802974,1330.5,1330.3,9.44681529]
[1673344777224,22.39802974,1330.5,1330.3,7.58144475]
[1673344777979,4.75902974,1330.5,1330.3,7.58144475]
[1673344778186,4.70441005,1330.5,1330.3,7.58144475]
[1673344780359,8.50207069,1330.5,1330.3,7.58144475]
[1673344780570,8.50207069,1330.5,1330.3,0.06434475]
[1673344780571,3.38741005,1330.4,1330.3,0.06434475]
[1673344780824,3.38741005,1330.4,1330.1,15.56296062]
[1673344781146,0.00360977,1330.3,1330.2,1.86546617]
[1673344782268,1.70460977,1330.3,1330.1,14.49601715]
[1673344782490,1.70460977,1330.3,1330.1,11.697821]
[1673344782701,1.70460977,1330.3,1330.1,10.58253475]
[1673344783511,1.70460977,1330.3,1330.1,11.697821]
[1673344783721,1.70460977,1330.3,1330.1,10.58253475]
[1673344785446,3.39501982,1330.3,1330.1,10.58253475]
[1673344785831,3.39501982,1330.3,1330.1,10.57904715]
[1673344786040,4.50814623,1330.3,1330.1,10.57904715]
[1673344786506,4.50814623,1330.3,1330.1,7.58253475]
[1673344789034,1.688,1330.2,1330.1,7.58253475]
[1673344789226,1.688,1330.2,1330.1,9.44813135]
[1673344792035,1e-08,1330.2,1330.1,10.5634176]
[1673344792251,1e-08,1330.2,1330.1,9.44813135]
[1673344792469,1e-08,1330.2,1330.1,11.94813135]
[1673344793343,1e-08,1330.2,1330.1,4.42994135]
[1673344793551,1e-08,1330.2,1330.1,4.3655966]
[1673344795233,1e-08,1330.2,1330.1,1.8655966]
[1673344798773,0.00360977,1330.3,1330.2,0.00199999]
[1673344799041,1.70460977,1330.3,1330.2,0.00199999]
[1673344799374,3.39501982,1330.3,1330.2,0.00199999]
[1673344801646,1.70460977,1330.3,1330.2,0.00199999]
[1673344802343,3.19747605,1330.3,1330.2,0.00199999]
[1673344802823,3.52390915,1330.3,1330.2,0.00199999]
[1673344802986,2.03104287,1330.3,1330.2,0.00199999]
[1673344804902,2.03104287,1330.3,1330.2,1.86745847]
[1673344805238,2.03104287,1330.3,1330.2,1.86744974]
[1673344805409,2.03104287,1330.3,1330.2,0.00199999]
[1673344805607,0.33004287,1330.3,1330.2,1.86744184]
[1673344805820,0.33004287,1330.3,1330.2,26.22878738]
[1673344806021,0.33004287,1330.3,1330.2,26.29313213]
[1673344813534,0.33004287,1330.3,1330.2,24.48478485]
[1673344813902,0.33004287,1330.3,1330.2,22.61932474]
[1673344815116,0.33004287,1330.3,1330.2,7.58400474]
[1673344819188,2.02045292,1330.3,1330.2,9.4495158]
[1673344821513,0.33004287,1330.3,1330.2,9.4495158]
[1673344824020,0.33004287,1330.3,1330.2,18.08246205]
[1673344824228,0.33004287,1330.3,1330.2,27.0972396]
[1673344824481,0.33004287,1330.3,1330.2,35.96050387]
[1673344824672,0.33004287,1330.3,1330.2,38.75870002]
[1673344824999,0.33004287,1330.3,1330.2,34.89599998]
[1673344825209,0.33004287,1330.3,1330.2,32.09780383]
[1673344825368,0.32782743,1330.3,1330.2,32.09780383]
[1673344825577,0.32782743,1330.3,1330.2,30.42487446]
[1673344825834,0.32782743,1330.3,1330.2,32.11207917]
[1673344827315,0.32782743,1330.3,1330.2,29.88118865]
[1673344828416,0.32782743,1330.3,1330.2,29.31707726]
[1673344832298,0.32782743,1330.3,1330.2,31.00428197]
[1673344832475,0.32782743,1330.3,1330.2,29.31707726]
[1673344833538,0.32782743,1330.3,1330.2,28.19398394]
[1673344836674,0.32782743,1330.3,1330.2,29.31707726]
[1673344840241,0.32782743,1330.3,1330.2,31.00428197]
[1673344842089,0.32782743,1330.3,1330.2,33.22307061]
[1673344842341,0.32782743,1330.3,1330.2,30.42487446]
[1673344843234,0.32782743,1330.3,1330.2,32.11132978]
[1673344843447,0.32782743,1330.3,1330.2,30.42487446]
[1673344843884,0.32782743,1330.3,1330.2,32.11128865]
[1673344844137,0.32782743,1330.3,1330.2,30.42487446]
[1673344844550,0.32782743,1330.3,1330.2,33.42487446]
[1673344844755,0.32782743,1330.3,1330.2,36.22307061]
[1673344845181,0.32782743,1330.3,1330.2,39.00526398]
[1673344845826,0.32782743,1330.3,1330.2,36.22307061]
[1673344846064,0.32782743,1330.3,1330.2,39.00526398]
[1673344847277,0.32782743,1330.3,1330.2,36.22307061]
[1673344847541,0.32782743,1330.3,1330.2,39.00526398]
[1673344848120,0.32782743,1330.3,1330.2,36.22307061]
[1673344851488,0.3264331,1330.3,1330.2,36.22107062]
[1673344852145,1e-08,1330.3,1330.2,36.22107062]
[1673344852482,1.313,1330.5,1330.2,36.22107062]
[1673344852706,1.313,1330.5,1330.3,7.17682546]
[1673344853009,1.313,1330.5,1330.4,9.60903258]
[1673344853183,1.313,1330.5,1330.4,9.67337733]
[1673344860833,1.313,1330.5,1330.4,2.15684733]
[1673344861080,4.07757375,1330.5,1330.4,2.09250258]
[1673344862346,3.00341005,1330.5,1330.4,2.09250258]
[1673344862880,3.00341005,1330.5,1330.4,0.22699152]
[1673344863053,6.94483337,1330.5,1330.4,0.22699152]
[1673344863270,6.99945306,1330.5,1330.3,0.23]
[1673344863479,6.99945306,1330.5,1330.4,0.23]
[1673344863675,10.40694574,1330.5,1330.4,0.23]
[1673344863879,10.40694574,1330.5,1330.3,0.23]
[1673344864107,17.92295574,1330.5,1330.3,0.23]
[1673344864533,1.698,1330.4,1330.3,0.23]
[1673344864727,1.698,1330.4,1330.3,2.09534659]
[1673344866609,1.698,1330.4,1330.3,0.23]
[1673344869079,8.16752242,1330.5,1330.3,9.61242489]
[1673344869247,10.41294574,1330.5,1330.3,7.81144475]
[1673344869456,8.15752242,1330.5,1330.3,7.81144475]
[1673344871283,10.41294574,1330.5,1330.3,0.29434475]
[1673344871496,10.41294574,1330.5,1330.3,0.23]
[1673344872340,8.15752242,1330.5,1330.3,0.23]
[1673344873129,10.41294574,1330.5,1330.3,0.23]
[1673344873564,10.41294574,1330.5,1330.3,7.74709]
[1673344873565,8.15752242,1330.5,1330.3,7.74709]
[1673344873788,8.15752242,1330.5,1330.3,7.81143475]
[1673344874551,4.75002974,1330.5,1330.3,7.81143475]
[1673344874762,4.69541005,1330.5,1330.3,7.81143475]
[1673344876494,3.005,1330.5,1330.3,15.32853475]
[1673344877207,4.69541005,1330.5,1330.3,15.32853475]
[1673344877492,3.005,1330.5,1330.3,15.32853475]
[1673344877669,5.9531722,1330.5,1330.3,15.32546345]
[1673344877874,6.00779189,1330.5,1330.3,15.32546345]
[1673344878321,6.00779189,1330.5,1330.3,7.80836345]
[1673344880752,4.31738184,1330.5,1330.3,7.80836345]
[1673344880977,3.005,1330.5,1330.3,7.80836345]
[1673344881281,4.69541005,1330.5,1330.3,7.80836345]
[1673344881590,3.005,1330.5,1330.3,7.80836345]
[1673344882751,4.69541005,1330.5,1330.3,7.80836345]
[1673344882917,3.005,1330.5,1330.3,7.80836345]
[1673344883490,3.005,1330.5,1330.3,15.32546345]
[1673344886788,3.005,1330.5,1330.3,22.84256345]
[1673344886961,3.005,1330.5,1330.3,23.96708921]
[1673344887685,3.005,1330.5,1330.3,22.84256345]
[1673344888462,3.005,1330.5,1330.3,23.96708921]
[1673344889780,3.005,1330.5,1330.4,1.86517398]
[1673344889991,3.005,1330.5,1330.4,17.12823398]
[1673344890196,3.005,1330.5,1330.4,24.70910873]
[1673344890841,3.005,1330.5,1330.4,9.67604873]
[1673344891408,3.005,1330.5,1330.4,9.67606294]
[1673344892666,3.005,1330.5,1330.4,2.15953294]
[1673344892985,3.005,1330.5,1330.4,17.12824819]
[1673344893307,3.005,1330.5,1330.4,2.15953294]
[1673344893462,3.005,1330.5,1330.4,0.23]
[1673344893917,3.005,1330.5,1330.4,7.74653]
[1673344894110,3.005,1330.5,1330.4,7.81087475]
[1673344897071,3.005,1330.5,1330.4,9.67607182]
[1673344899039,3.005,1330.5,1330.4,7.81087475]
[1673344899513,4.6952896,1330.5,1330.4,15.32740475]
[1673344899708,3.005,1330.5,1330.4,15.32740475]
[1673344900233,4.69528574,1330.5,1330.4,15.32740475]
[1673344900450,4.69531008,1330.5,1330.4,15.32740475]
[1673344900787,3.005,1330.5,1330.4,15.32740475]
[1673344901147,4.69530728,1330.5,1330.4,15.32740475]
[1673344901356,3.005,1330.5,1330.4,17.19261604]
[1673344901800,3.005,1330.5,1330.4,15.32740475]
[1673344901992,3.005,1330.5,1330.4,17.19262395]
[1673344902189,4.69529995,1330.5,1330.4,7.81087475]
[1673344902543,3.005,1330.5,1330.4,7.81087475]
[1673344902708,5.56696676,1330.5,1330.4,0.29434475]
[1673344902916,5.62158645,1330.5,1330.4,0.23]
[1673344907604,7.87700977,1330.5,1330.4,0.23]
[1673344907791,5.62158645,1330.5,1330.4,0.23]
[1673344908128,5.62158645,1330.5,1330.3,0.23]
[1673344908452,7.87700977,1330.5,1330.3,0.23]
[1673344909493,11.67467041,1330.5,1330.3,0.23]
[1673344916395,11.67467041,1330.5,1330.3,7.74704]
[1673344916396,9.41924709,1330.5,1330.3,7.74704]
[1673344916755,9.41924709,1330.5,1330.3,7.81138475]
[1673344917392,11.67467041,1330.5,1330.3,7.81138475]
[1673344917977,9.41924709,1330.5,1330.3,7.81138475]
[1673344918595,11.67467041,1330.5,1330.3,7.81138475]
[1673344919488,9.41924709,1330.5,1330.3,7.81138475]
[1673344920470,1.692,1330.4,1330.3,7.81138475]
[1673344920634,1.692,1330.4,1330.3,9.67670752]
[1673344921310,2.10443393,1330.4,1330.3,9.67670752]
[1673344921621,2.10443393,1330.4,1330.3,2.15966752]
[1673344921800,2.10443393,1330.4,1330.3,2.09532277]
[1673344922342,2.10443393,1330.4,1330.3,9.61242277]
[1673344922558,2.10443393,1330.4,1330.3,2.15966752]
[1673344922732,2.10443393,1330.4,1330.3,2.09532277]
[1673344924305,3.31414436,1330.4,1330.3,2.09532277]
[1673344927287,2.10443393,1330.4,1330.3,2.09532277]
[1673344934426,3.79476639,1330.4,1330.3,0.23]
[1673344935037,24.05525164,1330.4,1330.3,0.22645355]
[1673344935408,42.53446057,1330.4,1330.0,1.18887051]
[1673344935716,1.688,1330.1,1330.0,1.12452576]
[1673344935890,3.45654403,1330.2,1330.1,1.11942272]
[1673344936236,35.29683758,1330.2,1330.1,1.11942272]
[1673344936450,31.49118467,1330.2,1330.1,1.11942272]
[1673344936641,39.06518269,1330.2,1330.1,1.11942272]
[1673344936817,31.54752269,1330.2,1330.1,1.11942272]
[1673344937235,32.11152269,1330.2,1330.1,1.11942272]
[1673344937447,28.25125009,1330.2,1330.1,1.11942272]
[1673344938131,26.56032575,1330.2,1330.1,1.11942272]
[1673344938445,28.25125009,1330.2,1330.1,1.11942272]
[1673344939289,26.56032575,1330.2,1330.1,1.11942272]
[1673344939450,28.25125009,1330.2,1330.1,1.11942272]
[1673344939662,26.56032575,1330.2,1330.1,1.11942272]
[1673344943137,28.25125009,1330.2,1330.1,1.11942272]
[1673344943988,26.56032575,1330.2,1330.1,1.11942272]
[1673344944399,28.25125009,1330.2,1330.1,1.11942272]
[1673344945012,44.14476206,1330.2,1329.9,0.09989779]
[1673344945222,16.72486209,1330.0,1329.9,0.03555304]
[1673344945485,35.3518655,1330.0,1329.9,0.03555304]
[1673344946431,33.66458341,1330.0,1329.9,0.03555304]
[1673344948864,37.05758341,1330.0,1329.9,0.03555304]
[1673344956993,4.41638033,1330.0,1329.9,0.03555304]
[1673344957357,3.79766064,1330.0,1329.9,0.03555304]
[1673344957516,5.03166064,1330.0,1329.9,0.03555304]
[1673344957722,5.08628033,1330.0,1329.9,0.03555304]
[1673344958567,5.08628033,1330.0,1329.9,0.0328873]
[1673344963403,12.60507033,1330.0,1329.9,0.0328873]
[1673344965135,1.28861969,1330.0,1329.9,1.1628873]
[1673344965300,19.62930001,1330.2,1329.9,8.65564398]
[1673344965504,3.79766064,1330.1,1330.0,0.23]
[1673344969000,3.99666064,1330.1,1330.0,0.23]
[1673344970561,3.99866064,1330.1,1330.0,0.23]
[1673344970780,3.99666064,1330.1,1330.0,0.23]
[1673344971100,3.99866064,1330.1,1330.0,0.23]
[1673344971342,3.99666064,1330.1,1330.0,0.23]
[1673344973776,0.06400001,1330.2,1330.1,2.5]
[1673344973953,23.88011394,1330.4,1330.1,4.506758]
[1673344974162,3.79766064,1330.3,1330.1,4.276758]
[1673344974498,21.84815667,1330.4,1330.2,0.23]
[1673344974659,21.78615667,1330.4,1330.2,0.23]
[1673344974866,22.35005667,1330.4,1330.2,0.23]
[1673344977541,14.83327667,1330.4,1330.2,0.23]
[1673344979186,22.34981667,1330.4,1330.2,0.23]
[1673344984685,20.66253458,1330.4,1330.2,0.23]
[1673344986217,22.34981667,1330.4,1330.2,0.23]
[1673344986427,20.66253458,1330.4,1330.2,0.23]
[1673344986995,22.34981667,1330.4,1330.2,0.23]
[1673344987405,13.97981667,1330.4,1330.2,0.23]
[1673344987582,12.29253458,1330.4,1330.2,0.23]
[1673344987788,13.97981667,1330.4,1330.2,0.23]
[1673344988639,2.10171603,1330.4,1330.2,1.923]
[1673344988840,0.121,1330.5,1330.4,0.70477692]
[1673344989051,0.055,1330.5,1330.4,0.93477692]
[1673344995708,0.055,1330.5,1330.4,12.69192809]
[1673344995914,0.055,1330.5,1330.4,12.75627284]
[1673344996197,0.055,1330.5,1330.4,20.27280284]
[1673345000445,0.055,1330.5,1330.4,16.88380284]
[1673345004760,0.055,1330.5,1330.4,0.99912167]
[1673345004917,0.055,1330.5,1330.4,0.93477692]
[1673345005657,0.055,1330.5,1330.4,15.96783692]
[1673345006011,0.055,1330.5,1330.4,16.03218167]
[1673345009120,0.055,1330.5,1330.4,23.54871167]
[1673345009330,0.055,1330.5,1330.4,26.18335447]
[1673345010201,31.00327536,1330.7,1330.5,2.5]
[1673345010410,0.09947536,1330.7,1330.6,0.23]
[1673345010628,0.09547536,1330.7,1330.6,0.23]
[1673345014603,10.89159745,1330.7,1330.5,0.23]
[1673345014788,15.26416841,1330.7,1330.5,0.23]
[1673345015443,36.3412185,1330.7,1330.5,0.23]